[Event "Early-Titled-Tuesday-Blitz-October-17-2023"]
[Site "Chess.com"]
[Date "2023.10.17"]
[Round "9"]
[White "temiksmozg"]
[Black "Zurability"]
[Result "0-1"]
[WhiteElo "2593"]
[BlackElo "2743"]
[TimeControl "180+1"]
[EndTime "9:49:04 PDT"]
[Termination "Zurability won by resignation"]

1. e4 {[%clk 0:03:00.1]} 1... c5 {[%clk 0:03:00.1]} 2. Nf3 {[%clk 0:02:59.5]}
2... d6 {[%clk 0:03:01]} 3. d4 {[%clk 0:02:58.7]} 3... cxd4 {[%clk 0:03:01.9]}
4. Nxd4 {[%clk 0:02:58]} 4... Nf6 {[%clk 0:03:02.8]} 5. Nc3 {[%clk 0:02:57.8]}
5... g6 {[%clk 0:03:03]} 6. Be2 {[%clk 0:02:56.6]} 6... Bg7 {[%clk 0:03:03.2]}
7. Be3 {[%clk 0:02:56.4]} 7... Nc6 {[%clk 0:02:58.2]} 8. O-O {[%clk 0:02:56.3]}
8... O-O {[%clk 0:02:58.5]} 9. f4 {[%clk 0:02:55.7]} 9... Bd7 {[%clk 0:02:36.1]}
10. Bf3 {[%clk 0:02:54.2]} 10... Rc8 {[%clk 0:02:35.8]} 11. Kh1 {[%clk
0:02:52.7]} 11... Na5 {[%clk 0:02:35.2]} 12. e5 {[%clk 0:02:52.7]} 12... Ne8
{[%clk 0:02:33.9]} 13. e6 {[%clk 0:02:52.2]} 13... fxe6 {[%clk 0:02:24]} 14. Bg4
{[%clk 0:02:52]} 14... Nc7 {[%clk 0:02:13.3]} 15. Qe2 {[%clk 0:02:51.6]} 15...
e5 {[%clk 0:02:11.3]} 16. fxe5 {[%clk 0:02:48]} 16... Rxf1+ {[%clk 0:01:56]} 17.
Rxf1 {[%clk 0:02:46.3]} 17... dxe5 {[%clk 0:01:45.1]} 18. Nb3 {[%clk 0:02:39.1]}
18... Nxb3 {[%clk 0:01:38.4]} 19. axb3 {[%clk 0:02:33.1]} 19... Bxg4 {[%clk
0:01:34.5]} 20. Qxg4 {[%clk 0:02:34]} 20... a6 {[%clk 0:01:27.8]} 21. Bb6 {[%clk
0:02:31.6]} 21... Qe8 {[%clk 0:01:25.3]} 22. Qc4+ {[%clk 0:02:29.9]} 22... e6
{[%clk 0:01:15.6]} 23. Bxc7 {[%clk 0:02:13.9]} 23... Qd7 {[%clk 0:01:14.2]} 24.
Rd1 {[%clk 0:02:10]} 24... Qxc7 {[%clk 0:01:09.7]} 25. Qxe6+ {[%clk 0:02:09.5]}
25... Kh8 {[%clk 0:01:06.7]} 26. Rd7 {[%clk 0:02:09.3]} 26... Rf8 {[%clk
0:01:00.8]} 27. h3 {[%clk 0:01:59.3]} 27... Qc5 {[%clk 0:00:51.5]} 28. Rf7
{[%clk 0:01:51]} 28... b5 {[%clk 0:00:44.5]} 29. Ne4 {[%clk 0:01:41.8]} 29...
Qxc2 {[%clk 0:00:41.2]} 30. Rxf8+ {[%clk 0:01:41.8]} 30... Bxf8 {[%clk
0:00:41.1]} 31. Qxe5+ {[%clk 0:01:38.8]} 31... Kg8 {[%clk 0:00:39.4]} 32. Qe6+
{[%clk 0:01:33.6]} 32... Kg7 {[%clk 0:00:37.8]} 33. Qf6+ {[%clk 0:01:31]} 33...
Kg8 {[%clk 0:00:37.8]} 34. Qe6+ {[%clk 0:01:06.8]} 34... Kg7 {[%clk 0:00:37.4]}
35. Qd7+ {[%clk 0:01:06.5]} 35... Kh6 {[%clk 0:00:32.3]} 36. Qd5 {[%clk
0:00:34.3]} 36... Qxb2 {[%clk 0:00:26]} 37. g4 {[%clk 0:00:26.3]} 37... Kg7
{[%clk 0:00:20.6]} 38. g5 {[%clk 0:00:21.1]} 38... Be7 {[%clk 0:00:19.9]} 39. h4
{[%clk 0:00:15.5]} 39... a5 {[%clk 0:00:13.8]} 40. Qe6 {[%clk 0:00:15.1]} 40...
Kf8 {[%clk 0:00:07.3]} 41. Qc8+ {[%clk 0:00:10.1]} 41... Kf7 {[%clk 0:00:05]}
42. Qb7 {[%clk 0:00:09.3]} 42... Qb1+ {[%clk 0:00:04.4]} 43. Kg2 {[%clk
0:00:09]} 43... Qxb3 {[%clk 0:00:05]} 44. Nd6+ {[%clk 0:00:08.1]} 44... Ke6
{[%clk 0:00:05.4]} 45. Nxb5 {[%clk 0:00:07.5]} 45... Qd5+ {[%clk 0:00:05.4]} 46.
Qxd5+ {[%clk 0:00:05.6]} 46... Kxd5 {[%clk 0:00:06.3]} 47. Nc7+ {[%clk
0:00:05.2]} 47... Kc6 {[%clk 0:00:05.8]} 48. Ne6 {[%clk 0:00:04.9]} 48... a4
{[%clk 0:00:06]} 49. Kf3 {[%clk 0:00:04.4]} 49... Kd5 {[%clk 0:00:06]} 50. Nf4+
{[%clk 0:00:03.7]} 50... Kc4 {[%clk 0:00:06.6]} 51. h5 {[%clk 0:00:02.1]} 51...
a3 {[%clk 0:00:06.6]} 52. hxg6 {[%clk 0:00:02.3]} 52... hxg6 {[%clk 0:00:07.1]}
53. Nxg6 {[%clk 0:00:03.2]} 53... Bxg5 {[%clk 0:00:07.7]} 54. Ne5+ {[%clk
0:00:04.1]} 54... Kc3 {[%clk 0:00:08.1]} 55. Ke4 {[%clk 0:00:04]} 55... a2
{[%clk 0:00:08]} 56. Nf3 {[%clk 0:00:04.7]} 56... Bc1 {[%clk 0:00:08]} 0-1

[Event "Early-Titled-Tuesday-Blitz-October-17-2023"]
[Site "Chess.com"]
[Date "2023.10.17"]
[Round "9"]
[White "bazar-wokzal"]
[Black "krzyzan94"]
[Result "0-1"]
[WhiteElo "2591"]
[BlackElo "2792"]
[TimeControl "180+1"]
[EndTime "9:49:09 PDT"]
[Termination "krzyzan94 won on time"]

1. e4 {[%clk 0:03:00.9]} 1... c5 {[%clk 0:02:58.9]} 2. c3 {[%clk 0:03:00.4]}
2... d5 {[%clk 0:02:57.7]} 3. exd5 {[%clk 0:03:00.4]} 3... Qxd5 {[%clk
0:02:58.6]} 4. d4 {[%clk 0:03:00.8]} 4... g6 {[%clk 0:02:59]} 5. dxc5 {[%clk
0:03:00.5]} 5... Qxc5 {[%clk 0:02:55.9]} 6. Be3 {[%clk 0:02:59.7]} 6... Qa5
{[%clk 0:02:50.2]} 7. Nf3 {[%clk 0:02:48.8]} 7... Nf6 {[%clk 0:02:50]} 8. Be2
{[%clk 0:02:41.5]} 8... Bg7 {[%clk 0:02:50.2]} 9. O-O {[%clk 0:02:41]} 9... O-O
{[%clk 0:02:50.5]} 10. Na3 {[%clk 0:02:39.1]} 10... Rd8 {[%clk 0:02:46.6]} 11.
Qb3 {[%clk 0:02:37.7]} 11... Nc6 {[%clk 0:02:41.2]} 12. Ng5 {[%clk 0:02:29.9]}
12... e6 {[%clk 0:02:29.5]} 13. Rad1 {[%clk 0:02:23.7]} 13... Nd5 {[%clk
0:02:24.1]} 14. Bc1 {[%clk 0:02:16.3]} 14... Qc7 {[%clk 0:02:01.5]} 15. Bf3
{[%clk 0:02:11.2]} 15... h6 {[%clk 0:01:55.3]} 16. Ne4 {[%clk 0:02:10.9]} 16...
Ne5 {[%clk 0:01:55.1]} 17. Be2 {[%clk 0:02:06.7]} 17... a6 {[%clk 0:01:45]} 18.
c4 {[%clk 0:01:59]} 18... Ne7 {[%clk 0:01:40.9]} 19. c5 {[%clk 0:01:53.2]} 19...
Nd5 {[%clk 0:01:35.4]} 20. Nc4 {[%clk 0:01:49.2]} 20... Nxc4 {[%clk 0:01:14.7]}
21. Bxc4 {[%clk 0:01:47.6]} 21... Bd7 {[%clk 0:00:59.7]} 22. Bxd5 {[%clk
0:01:33.2]} 22... exd5 {[%clk 0:01:00]} 23. Nd6 {[%clk 0:01:31.6]} 23... Be6
{[%clk 0:00:43.7]} 24. Bf4 {[%clk 0:01:24.8]} 24... Rd7 {[%clk 0:00:21.2]} 25.
Bg3 {[%clk 0:01:22.5]} 25... Qxc5 {[%clk 0:00:19.4]} 26. Nxb7 {[%clk 0:01:21.3]}
26... Qc4 {[%clk 0:00:16.1]} 27. Na5 {[%clk 0:01:13.5]} 27... Qxb3 {[%clk
0:00:15.6]} 28. Nxb3 {[%clk 0:01:07.7]} 28... Rc8 {[%clk 0:00:15.9]} 29. Nd4
{[%clk 0:01:06.3]} 29... Rc4 {[%clk 0:00:12.3]} 30. Nxe6 {[%clk 0:01:01.9]}
30... fxe6 {[%clk 0:00:13.2]} 31. b3 {[%clk 0:01:02.5]} 31... Rc2 {[%clk
0:00:13.8]} 32. Rfe1 {[%clk 0:01:00.9]} 32... Kf7 {[%clk 0:00:12.8]} 33. a4
{[%clk 0:01:00.5]} 33... d4 {[%clk 0:00:12.7]} 34. Rd3 {[%clk 0:00:54.4]} 34...
Rc3 {[%clk 0:00:11.8]} 35. Red1 {[%clk 0:00:51.5]} 35... Rxd3 {[%clk 0:00:11.4]}
36. Rxd3 {[%clk 0:00:51.2]} 36... e5 {[%clk 0:00:12.3]} 37. f3 {[%clk
0:00:51.4]} 37... Rc7 {[%clk 0:00:11.1]} 38. Be1 {[%clk 0:00:50.3]} 38... Ke6
{[%clk 0:00:09.8]} 39. Kf2 {[%clk 0:00:48.8]} 39... Rc1 {[%clk 0:00:08.6]} 40.
Ke2 {[%clk 0:00:46.2]} 40... h5 {[%clk 0:00:08.1]} 41. Bd2 {[%clk 0:00:45]}
41... Rc2 {[%clk 0:00:08.2]} 42. Kd1 {[%clk 0:00:41.9]} 42... Ra2 {[%clk
0:00:08.4]} 43. Kc1 {[%clk 0:00:40.3]} 43... Ra1+ {[%clk 0:00:09]} 44. Kc2
{[%clk 0:00:34.4]} 44... Rg1 {[%clk 0:00:09.9]} 45. b4 {[%clk 0:00:20.7]} 45...
Rxg2 {[%clk 0:00:10]} 46. Kb3 {[%clk 0:00:18.8]} 46... Kd5 {[%clk 0:00:08.8]}
47. h4 {[%clk 0:00:15.8]} 47... Rg1 {[%clk 0:00:06.8]} 48. b5 {[%clk 0:00:14.5]}
48... axb5 {[%clk 0:00:06.4]} 49. axb5 {[%clk 0:00:14.8]} 49... Rb1+ {[%clk
0:00:07]} 50. Ka4 {[%clk 0:00:15.1]} 50... Kc4 {[%clk 0:00:07.3]} 51. Ra3 {[%clk
0:00:11.5]} 51... Rxb5 {[%clk 0:00:07.5]} 52. Ra1 {[%clk 0:00:08.4]} 52... Rb7
{[%clk 0:00:06.9]} 53. Rg1 {[%clk 0:00:07]} 53... Ra7+ {[%clk 0:00:06.1]} 54.
Ba5 {[%clk 0:00:06.8]} 54... Bh6 {[%clk 0:00:05.4]} 0-1

[Event "Early-Titled-Tuesday-Blitz-October-17-2023"]
[Site "Chess.com"]
[Date "2023.10.17"]
[Round "9"]
[White "CristianS27"]
[Black "Fore_Man"]
[Result "1-0"]
[WhiteElo "2514"]
[BlackElo "2339"]
[TimeControl "180+1"]
[EndTime "9:49:09 PDT"]
[Termination "CristianS27 won by resignation"]

1. e4 {[%clk 0:03:00.9]} 1... c5 {[%clk 0:02:53.2]} 2. Nf3 {[%clk 0:03:00.8]}
2... Nc6 {[%clk 0:02:52.7]} 3. d4 {[%clk 0:03:01.5]} 3... cxd4 {[%clk
0:02:52.9]} 4. Nxd4 {[%clk 0:03:02.4]} 4... g6 {[%clk 0:02:52.5]} 5. Nc3 {[%clk
0:03:02.7]} 5... Bg7 {[%clk 0:02:52.5]} 6. Be3 {[%clk 0:03:03.6]} 6... Nf6
{[%clk 0:02:52.7]} 7. Bc4 {[%clk 0:03:04]} 7... d6 {[%clk 0:02:52.1]} 8. h3
{[%clk 0:03:02.6]} 8... Bd7 {[%clk 0:02:49.8]} 9. O-O {[%clk 0:03:02.2]} 9... a6
{[%clk 0:02:50.2]} 10. Bb3 {[%clk 0:03:02.6]} 10... O-O {[%clk 0:02:50]} 11. Re1
{[%clk 0:03:02.8]} 11... b5 {[%clk 0:02:49.7]} 12. a4 {[%clk 0:02:44.2]} 12...
b4 {[%clk 0:02:46]} 13. Nd5 {[%clk 0:02:44.8]} 13... Nxe4 {[%clk 0:02:43]} 14.
Nxc6 {[%clk 0:02:42.7]} 14... Bxc6 {[%clk 0:02:42.6]} 15. Nxb4 {[%clk
0:02:42.9]} 15... Bb7 {[%clk 0:02:39.1]} 16. Bd4 {[%clk 0:02:25.7]} 16... Nf6
{[%clk 0:02:33.6]} 17. c3 {[%clk 0:02:04.1]} 17... Rb8 {[%clk 0:02:30.2]} 18.
Ba7 {[%clk 0:01:59.4]} 18... Ra8 {[%clk 0:02:29.9]} 19. Bd4 {[%clk 0:01:59.6]}
19... a5 {[%clk 0:02:26.9]} 20. Nd5 {[%clk 0:01:51.6]} 20... Nxd5 {[%clk
0:02:16.6]} 21. Bxg7 {[%clk 0:01:50.7]} 21... Kxg7 {[%clk 0:02:15.5]} 22. Bxd5
{[%clk 0:01:50.4]} 22... Bxd5 {[%clk 0:02:14.9]} 23. Qxd5 {[%clk 0:01:50.6]}
23... Rb8 {[%clk 0:02:13.6]} 24. Re2 {[%clk 0:01:42.4]} 24... e6 {[%clk
0:02:12.6]} 25. Qd4+ {[%clk 0:01:41.1]} 25... Kg8 {[%clk 0:02:08.4]} 26. Rd1
{[%clk 0:01:40.7]} 26... d5 {[%clk 0:02:06.3]} 27. h4 {[%clk 0:01:37.7]} 27...
Qb6 {[%clk 0:02:06]} 28. Qf6 {[%clk 0:01:31.4]} 28... Qd8 {[%clk 0:02:05.8]} 29.
Qd4 {[%clk 0:01:30.1]} 29... Qb6 {[%clk 0:02:02.8]} 30. Qf4 {[%clk 0:01:21]}
30... Rfd8 {[%clk 0:01:30.9]} 31. h5 {[%clk 0:01:19.7]} 31... Qd6 {[%clk
0:01:31.1]} 32. Qf6 {[%clk 0:01:17.5]} 32... Rd7 {[%clk 0:01:14.7]} 33. Rd3
{[%clk 0:01:13.6]} 33... Qe7 {[%clk 0:01:13.9]} 34. Qf4 {[%clk 0:01:12.9]} 34...
Rbb7 {[%clk 0:01:03.4]} 35. Rh3 {[%clk 0:01:06.9]} 35... g5 {[%clk 0:00:59.3]}
36. Qe5 {[%clk 0:01:00.3]} 36... h6 {[%clk 0:00:56]} 37. f4 {[%clk 0:00:57.5]}
37... Qd6 {[%clk 0:00:43.8]} 38. fxg5 {[%clk 0:00:52.7]} 38... Qxe5 {[%clk
0:00:40.7]} 39. Rxe5 {[%clk 0:00:53.6]} 39... Rxb2 {[%clk 0:00:40.6]} 40. gxh6
{[%clk 0:00:47.3]} 40... Kh7 {[%clk 0:00:40.6]} 41. Rg3 {[%clk 0:00:38.2]} 41...
Rb8 {[%clk 0:00:22.1]} 42. Reg5 {[%clk 0:00:35.5]} 42... Kxh6 {[%clk 0:00:22.3]}
43. Kh2 {[%clk 0:00:33.7]} 43... Rc7 {[%clk 0:00:18.8]} 44. Rg7 {[%clk
0:00:31.6]} 44... Rb3 {[%clk 0:00:16.9]} 45. Rg8 {[%clk 0:00:30.9]} 45... f6
{[%clk 0:00:07.6]} 46. R8g6+ {[%clk 0:00:20.5]} 46... Kh7 {[%clk 0:00:07.5]} 47.
Rxf6 {[%clk 0:00:17.8]} 47... Rbxc3 {[%clk 0:00:07.3]} 48. Rxe6 {[%clk 0:00:17]}
48... Rxg3 {[%clk 0:00:06.5]} 49. Kxg3 {[%clk 0:00:17.9]} 49... Rc3+ {[%clk
0:00:07]} 50. Kh4 {[%clk 0:00:17.4]} 50... Rc4+ {[%clk 0:00:07.4]} 51. g4 {[%clk
0:00:17.8]} 51... Rxa4 {[%clk 0:00:07.6]} 52. Re7+ {[%clk 0:00:18.3]} 52... Kg8
{[%clk 0:00:07.5]} 53. h6 {[%clk 0:00:16.5]} 53... Re4 {[%clk 0:00:05.7]} 54.
Ra7 {[%clk 0:00:15]} 54... a4 {[%clk 0:00:04.9]} 55. Kh5 {[%clk 0:00:14.5]}
55... d4 {[%clk 0:00:04.1]} 56. g5 {[%clk 0:00:14.6]} 56... d3 {[%clk
0:00:03.3]} 57. g6 {[%clk 0:00:14.4]} 57... Re5+ {[%clk 0:00:03.6]} 58. Kg4
{[%clk 0:00:14.5]} 58... Rd5 {[%clk 0:00:03.1]} 59. Ra8+ {[%clk 0:00:14.2]} 1-0

[Event "Early-Titled-Tuesday-Blitz-October-17-2023"]
[Site "Chess.com"]
[Date "2023.10.17"]
[Round "9"]
[White "sokidze"]
[Black "wonderfultime"]
[Result "0-1"]
[WhiteElo "2790"]
[BlackElo "2977"]
[TimeControl "180+1"]
[EndTime "9:49:11 PDT"]
[Termination "wonderfultime won on time"]

1. d4 {[%clk 0:03:00.9]} 1... d5 {[%clk 0:02:59.3]} 2. c4 {[%clk 0:03:01.6]}
2... c6 {[%clk 0:02:57.5]} 3. cxd5 {[%clk 0:03:01.9]} 3... cxd5 {[%clk
0:02:57.6]} 4. Bf4 {[%clk 0:03:02.6]} 4... Nf6 {[%clk 0:02:57.7]} 5. e3 {[%clk
0:03:02.9]} 5... Nc6 {[%clk 0:02:57.9]} 6. Nc3 {[%clk 0:03:03.3]} 6... a6 {[%clk
0:02:56.9]} 7. Bd3 {[%clk 0:03:03.6]} 7... Bg4 {[%clk 0:02:57.1]} 8. Nge2 {[%clk
0:03:04]} 8... e6 {[%clk 0:02:57.3]} 9. O-O {[%clk 0:03:04.2]} 9... Bd6 {[%clk
0:02:57.6]} 10. Bxd6 {[%clk 0:03:03.2]} 10... Qxd6 {[%clk 0:02:58.5]} 11. Rc1
{[%clk 0:03:03.4]} 11... O-O {[%clk 0:02:58.3]} 12. Na4 {[%clk 0:03:03]} 12...
Nb4 {[%clk 0:02:27]} 13. Bb1 {[%clk 0:02:50.6]} 13... Rac8 {[%clk 0:02:25.4]}
14. f3 {[%clk 0:02:31.8]} 14... Bh5 {[%clk 0:02:24.1]} 15. Qb3 {[%clk
0:02:25.1]} 15... Rb8 {[%clk 0:01:58.8]} 16. Nf4 {[%clk 0:01:51.6]} 16... Bg6
{[%clk 0:01:57.7]} 17. Nxg6 {[%clk 0:01:44]} 17... hxg6 {[%clk 0:01:58.6]} 18.
f4 {[%clk 0:01:44.4]} 18... b6 {[%clk 0:01:46.1]} 19. Qc3 {[%clk 0:01:12.2]}
19... a5 {[%clk 0:01:46.2]} 20. a3 {[%clk 0:01:06.9]} 20... Qd7 {[%clk
0:01:43.6]} 21. Qb3 {[%clk 0:01:02.2]} 21... Na6 {[%clk 0:01:35.2]} 22. Bd3
{[%clk 0:01:01.5]} 22... Nc7 {[%clk 0:01:35.5]} 23. Rc2 {[%clk 0:00:58.1]} 23...
Nce8 {[%clk 0:01:27.1]} 24. Rfc1 {[%clk 0:00:38.8]} 24... Nd6 {[%clk 0:01:27.2]}
25. Rc7 {[%clk 0:00:34.8]} 25... Qd8 {[%clk 0:01:27.6]} 26. R7c6 {[%clk
0:00:34.9]} 26... Nc4 {[%clk 0:01:19.7]} 27. Bxc4 {[%clk 0:00:25.3]} 27... dxc4
{[%clk 0:01:20.6]} 28. Qb5 {[%clk 0:00:24.4]} 28... Nd5 {[%clk 0:01:14.4]} 29.
Re1 {[%clk 0:00:23.5]} 29... g5 {[%clk 0:01:10.3]} 30. g3 {[%clk 0:00:12.5]}
30... gxf4 {[%clk 0:01:09.1]} 31. exf4 {[%clk 0:00:12]} 31... Qd7 {[%clk
0:00:40.1]} 32. Nc3 {[%clk 0:00:06.7]} 32... Nc7 {[%clk 0:00:19.4]} 33. Qxc4
{[%clk 0:00:06.6]} 33... Rfc8 {[%clk 0:00:20.1]} 34. a4 {[%clk 0:00:05.2]} 34...
Ne8 {[%clk 0:00:13.2]} 35. Rxc8 {[%clk 0:00:04.6]} 35... Rxc8 {[%clk 0:00:14.1]}
36. Qb5 {[%clk 0:00:04.3]} 36... Qxd4+ {[%clk 0:00:13.8]} 37. Kh1 {[%clk
0:00:03.4]} 37... Nf6 {[%clk 0:00:12]} 38. Qe5 {[%clk 0:00:03.1]} 38... Qb4
{[%clk 0:00:11.5]} 39. Qe2 {[%clk 0:00:03]} 39... Rd8 {[%clk 0:00:10.9]} 40. Rd1
{[%clk 0:00:02]} 40... Rxd1+ {[%clk 0:00:11]} 41. Nxd1 {[%clk 0:00:02.9]} 41...
Qxa4 {[%clk 0:00:11.2]} 42. Nc3 {[%clk 0:00:02.7]} 42... Qc6+ {[%clk 0:00:11.3]}
43. Kg1 {[%clk 0:00:02.7]} 43... Nd5 {[%clk 0:00:09.7]} 44. Nxd5 {[%clk
0:00:02.2]} 44... Qxd5 {[%clk 0:00:10.6]} 45. Qa6 {[%clk 0:00:02.2]} 45... Qd4+
{[%clk 0:00:10.8]} 46. Kh1 {[%clk 0:00:02.6]} 46... Qe4+ {[%clk 0:00:09.4]} 47.
Kg1 {[%clk 0:00:02.9]} 47... Qb1+ {[%clk 0:00:10]} 48. Kg2 {[%clk 0:00:02.7]}
48... Qxb2+ {[%clk 0:00:10.7]} 49. Kh3 {[%clk 0:00:03.3]} 49... g6 {[%clk
0:00:11.3]} 50. Qc8+ {[%clk 0:00:03.5]} 50... Kg7 {[%clk 0:00:11.6]} 51. Qc4
{[%clk 0:00:02.1]} 51... b5 {[%clk 0:00:11.7]} 52. Qc5 {[%clk 0:00:02]} 52... a4
{[%clk 0:00:12]} 53. f5 {[%clk 0:00:01.6]} 53... exf5 {[%clk 0:00:11.4]} 0-1

[Event "Early-Titled-Tuesday-Blitz-October-17-2023"]
[Site "Chess.com"]
[Date "2023.10.17"]
[Round "9"]
[White "MMAHDI2013"]
[Black "Ishowmoves57"]
[Result "1-0"]
[WhiteElo "2454"]
[BlackElo "2217"]
[TimeControl "180+1"]
[EndTime "9:49:12 PDT"]
[Termination "MMAHDI2013 won by checkmate"]

1. c4 {[%clk 0:02:47.5]} 1... e6 {[%clk 0:02:57.2]} 2. Nf3 {[%clk 0:02:47.6]}
2... Nf6 {[%clk 0:02:55.8]} 3. g3 {[%clk 0:02:47.9]} 3... d5 {[%clk 0:02:55.9]}
4. Bg2 {[%clk 0:02:48.3]} 4... Be7 {[%clk 0:02:56.1]} 5. O-O {[%clk 0:02:48.7]}
5... O-O {[%clk 0:02:56.7]} 6. b3 {[%clk 0:02:49.4]} 6... c6 {[%clk 0:02:57.3]}
7. Bb2 {[%clk 0:02:49.4]} 7... Nbd7 {[%clk 0:02:57.9]} 8. d4 {[%clk 0:02:49.5]}
8... Ne4 {[%clk 0:02:58.4]} 9. Nc3 {[%clk 0:02:49.2]} 9... f5 {[%clk 0:02:56.5]}
10. Ne5 {[%clk 0:02:49.6]} 10... Nxe5 {[%clk 0:02:56.1]} 11. dxe5 {[%clk
0:02:49.4]} 11... Nxc3 {[%clk 0:02:54.6]} 12. Bxc3 {[%clk 0:02:49.2]} 12... dxc4
{[%clk 0:02:52.4]} 13. Qxd8 {[%clk 0:02:47.9]} 13... Rxd8 {[%clk 0:02:53.3]} 14.
bxc4 {[%clk 0:02:48.2]} 14... Bd7 {[%clk 0:02:50]} 15. Rab1 {[%clk 0:02:40.8]}
15... Rab8 {[%clk 0:02:46]} 16. e4 {[%clk 0:02:32.3]} 16... g6 {[%clk
0:02:44.1]} 17. f4 {[%clk 0:02:23]} 17... b6 {[%clk 0:02:31.5]} 18. Rfd1 {[%clk
0:02:09.2]} 18... Be8 {[%clk 0:02:25.2]} 19. Kf2 {[%clk 0:02:05.6]} 19... c5
{[%clk 0:02:12.7]} 20. exf5 {[%clk 0:01:54.9]} 20... gxf5 {[%clk 0:02:10.6]} 21.
Bf3 {[%clk 0:01:50.1]} 21... Rxd1 {[%clk 0:02:02.5]} 22. Rxd1 {[%clk 0:01:46.9]}
22... Rd8 {[%clk 0:02:02.9]} 23. Rc1 {[%clk 0:01:38.8]} 23... Ba4 {[%clk
0:01:53.6]} 24. g4 {[%clk 0:01:33.7]} 24... fxg4 {[%clk 0:01:47.3]} 25. Bxg4
{[%clk 0:01:34.6]} 25... Bd7 {[%clk 0:01:40.8]} 26. Rg1 {[%clk 0:01:25.6]} 26...
Kh8 {[%clk 0:01:35.4]} 27. f5 {[%clk 0:01:03.7]} 27... Rf8 {[%clk 0:01:03.2]}
28. f6 {[%clk 0:00:59.1]} 28... Bd8 {[%clk 0:01:02]} 29. Bd2 {[%clk 0:00:30.3]}
29... Rg8 {[%clk 0:00:56.2]} 30. Bh6 {[%clk 0:00:23.4]} 30... Rg6 {[%clk
0:00:44.2]} 31. f7 {[%clk 0:00:23.1]} 31... Be7 {[%clk 0:00:40.9]} 32. f8=Q+
{[%clk 0:00:22.3]} 32... Bxf8 {[%clk 0:00:41]} 33. Bxf8 {[%clk 0:00:23.2]} 33...
Kg8 {[%clk 0:00:39.1]} 34. Be7 {[%clk 0:00:02.7]} 34... Kf7 {[%clk 0:00:36.3]}
35. Bf6 {[%clk 0:00:02.9]} 35... Kf8 {[%clk 0:00:32.4]} 36. Bh5 {[%clk
0:00:03.4]} 36... Rxg1 {[%clk 0:00:30.9]} 37. Kxg1 {[%clk 0:00:04.3]} 37... Bc6
{[%clk 0:00:31]} 38. Be2 {[%clk 0:00:04.4]} 38... Be4 {[%clk 0:00:31.2]} 39. Kf2
{[%clk 0:00:05.1]} 39... Bb1 {[%clk 0:00:31.7]} 40. a3 {[%clk 0:00:05.8]} 40...
a6 {[%clk 0:00:31]} 41. Ke3 {[%clk 0:00:06.7]} 41... Bf5 {[%clk 0:00:29.6]} 42.
Bd8 {[%clk 0:00:06.8]} 42... b5 {[%clk 0:00:26.2]} 43. cxb5 {[%clk 0:00:07.7]}
43... axb5 {[%clk 0:00:27.1]} 44. Bxb5 {[%clk 0:00:07.9]} 44... Bc2 {[%clk
0:00:24.8]} 45. a4 {[%clk 0:00:08.1]} 45... Bb3 {[%clk 0:00:24.6]} 46. a5 {[%clk
0:00:08.4]} 46... c4 {[%clk 0:00:25.1]} 47. Kd4 {[%clk 0:00:09]} 47... c3 {[%clk
0:00:24.4]} 48. Kxc3 {[%clk 0:00:09.3]} 48... Bd5 {[%clk 0:00:24.7]} 49. a6
{[%clk 0:00:09.7]} 49... Kg7 {[%clk 0:00:25.1]} 50. a7 {[%clk 0:00:10.2]} 50...
Kg6 {[%clk 0:00:25.7]} 51. Kb4 {[%clk 0:00:10.7]} 51... Kh5 {[%clk 0:00:25]} 52.
Kc5 {[%clk 0:00:11.3]} 52... Kg4 {[%clk 0:00:24.6]} 53. Bc6 {[%clk 0:00:11.9]}
53... Bxc6 {[%clk 0:00:24.5]} 54. Kxc6 {[%clk 0:00:12.8]} 54... Kh3 {[%clk
0:00:24.6]} 55. a8=Q {[%clk 0:00:13.7]} 55... Kxh2 {[%clk 0:00:24.8]} 56. Qb7
{[%clk 0:00:14.6]} 56... h5 {[%clk 0:00:24.9]} 57. Qh7 {[%clk 0:00:15.5]} 57...
h4 {[%clk 0:00:25.4]} 58. Qxh4+ {[%clk 0:00:15.5]} 58... Kg2 {[%clk 0:00:26.3]}
59. Qe7 {[%clk 0:00:16.4]} 59... Kf1 {[%clk 0:00:25.9]} 60. Qxe6 {[%clk
0:00:17]} 60... Kg1 {[%clk 0:00:25.7]} 61. Kd7 {[%clk 0:00:17.9]} 61... Kh1
{[%clk 0:00:26.6]} 62. Qd6 {[%clk 0:00:18.5]} 62... Kh2 {[%clk 0:00:27.1]} 63.
e6+ {[%clk 0:00:19.2]} 63... Kh1 {[%clk 0:00:28]} 64. e7 {[%clk 0:00:19.8]}
64... Kg1 {[%clk 0:00:26]} 65. e8=Q {[%clk 0:00:19.6]} 65... Kh1 {[%clk
0:00:26.9]} 66. Qe1+ {[%clk 0:00:19.5]} 66... Kg2 {[%clk 0:00:27.1]} 67. Qe2+
{[%clk 0:00:19.9]} 67... Kh1 {[%clk 0:00:27.5]} 68. Qdh2# {[%clk 0:00:20.2]} 1-0